bitfinex/quotes_SOLUSD_20250602
["timestamp","ask_amount","ask_price","bid_price","bid_amount"]
[1748851686475,18.11824475,155.97,155.93,18.11824475]
[1748851687157,18.11824475,155.97,155.91,6.41395676]
[1748851687350,18.11824475,155.94,155.9,6.41428627]
[1748851687549,18.11824475,155.94,155.9,24.53253102]
[1748851688170,18.11824475,155.95,155.9,24.53253102]
[1748851688381,259.56320706,155.99,155.9,6.41428627]
[1748851688564,18.11824475,155.95,155.91,18.11824475]
[1748851688878,18.11824475,155.96,155.92,18.11824475]
[1748851689183,241.32,155.99,155.93,6.41313409]
[1748851689477,18.11824475,155.96,155.93,6.41313409]
[1748851692680,18.11824475,155.95,155.91,24.53209303]
[1748851692995,18.11824475,155.97,155.93,18.11824475]
[1748851693155,28.35824475,155.98,155.94,18.11824475]
[1748851693580,18.11824475,155.97,155.93,18.11824475]
[1748851694356,28.35824475,155.98,155.94,18.11824475]
[1748851694581,10.24,155.98,155.95,18.11824475]
[1748851694757,10.24,155.98,155.94,18.11824475]
[1748851695086,10.24,155.98,155.97,6.41148938]
[1748851695885,10.24,155.98,155.96,24.53004617]
[1748851696084,10.24,155.98,155.96,6.41180142]
[1748851696883,10.24,155.98,155.96,24.53004617]
[1748851697288,18.11824475,156.01,155.96,24.53004617]
[1748851697795,10.24,156.02,155.97,18.11824475]
[1748851697971,28.35824475,156.02,155.98,18.11824475]
[1748851698504,10.24,156.02,155.98,18.11824475]
[1748851698685,28.35824475,156.02,155.96,6.41180142]
[1748851698860,18.11824475,156.01,155.97,18.11824475]
[1748851699259,18.11824475,156.0,155.96,6.41180142]
[1748851699454,18.11824475,156.0,155.96,24.53004617]
[1748851700869,18.11824475,156.0,155.95,12.51226918]
[1748851701070,16.64959469,156.02,155.96,18.11824475]
[1748851701291,18.11824475,156.0,155.96,24.52997489]
[1748851701495,28.35824475,156.02,155.98,18.11824475]
[1748851701879,28.35824475,156.02,155.96,6.41173014]
[1748851702077,28.35824475,156.02,155.98,18.11824475]
[1748851702778,28.35824475,156.02,155.99,6.41066735]
[1748851702977,10.24,156.02,155.95,24.53055638]
[1748851703200,18.11824475,156.01,155.97,18.11824475]
[1748851704184,28.35824475,156.02,155.98,18.11824475]
[1748851704875,28.35824475,156.02,155.99,6.41066735]
[1748851706075,18.11824475,156.01,155.99,6.41066735]
[1748851707073,18.11824475,156.01,155.98,6.41107834]
[1748851707702,28.35824475,156.02,155.98,6.41107834]
[1748851708287,28.35824475,156.02,155.98,18.11824475]
[1748851709203,10.24,156.02,155.99,18.11824475]
[1748851710410,18.11824475,156.04,156.0,6.41025641]
[1748851710581,18.11824475,156.04,156.0,24.52850116]
[1748851711200,159.14,156.06,156.0,24.52850116]
[1748851711402,18.11824475,156.05,156.0,24.52850116]
[1748851711800,10.24,156.06,156.01,1.5694]
[1748851711983,10.24,156.06,156.05,18.11824475]
[1748851712189,110.47824475,156.09,156.06,6.40779187]
[1748851712395,92.36,156.09,156.06,6.40779187]
[1748851712584,18.11824475,156.09,156.06,6.40779187]
[1748851712802,28.33824475,156.1,156.06,24.52603662]
[1748851713690,17.60723121,156.15,156.06,24.52603662]
[1748851713691,1.5961,156.15,156.09,18.11824475]
[1748851713896,10.22,156.14,156.1,18.11824475]
[1748851714103,10.22,156.14,156.07,1.6087]
[1748851714104,10.22,156.14,156.12,18.11824475]
[1748851714415,10.22,156.14,156.12,6.40532923]
[1748851715208,16.8822,156.18,156.09,18.11824475]
[1748851715393,18.11824475,156.1,156.08,6.40697078]
[1748851715592,18.11824475,156.11,156.08,6.40697078]
[1748851715791,148.9,156.15,156.09,18.11824475]
[1748851716110,18.11824475,156.13,156.09,18.11824475]
[1748851716310,18.11824475,156.13,156.1,6.4061499]
[1748851716512,18.11824475,156.14,156.1,24.52439465]
[1748851716889,18.11824475,156.13,156.1,6.4061499]
[1748851717100,159.12,156.15,156.09,25.02472161]
[1748851717304,18.11824475,156.13,156.09,24.52472161]
[1748851717489,18.11824475,156.13,156.09,6.40647686]
[1748851718097,26.0,156.17,156.1,18.11824475]
[1748851718312,10.22,156.16,156.11,6.40573954]
[1748851718491,18.11824475,156.13,156.11,6.40573954]
[1748851719113,18.11824475,156.12,156.09,6.40656031]
[1748851719315,18.11824475,156.11,156.07,45.72694475]
[1748851720016,18.11824475,156.11,156.08,6.40683004]
[1748851720794,6.40422782,156.15,156.08,6.40683004]
[1748851720995,18.11824475,156.11,156.08,6.40683004]
[1748851723798,18.11824475,156.09,156.06,6.40779187]
[1748851723997,18.11824475,156.08,156.06,6.40779187]
[1748851724213,18.11824475,156.07,156.04,6.40861317]
[1748851724404,18.11824475,156.06,156.04,6.40861317]
[1748851724925,18.11824475,156.05,156.04,6.40861317]
[1748851725238,18.11824475,156.05,156.0,22.11518066]
[1748851725239,18.11824475,156.05,156.01,6.40984552]
[1748851725397,42.68576746,156.11,156.01,6.40984552]
[1748851725398,18.11824475,156.03,156.01,6.40984552]
[1748851725598,18.11824475,156.04,156.01,6.40984552]
[1748851726070,18.11824475,156.05,156.01,24.52809027]
[1748851726319,10.28,156.06,156.01,24.52809027]
[1748851726624,18.11824475,156.05,156.01,40.55270407]
[1748851726920,28.39824475,156.06,156.02,18.11824475]
[1748851727314,28.39824475,156.06,156.01,40.55270407]
[1748851727510,18.11824475,156.05,156.01,40.55270407]
[1748851729208,18.11824475,156.04,156.01,22.43445932]
[1748851729413,18.11824475,156.03,156.01,6.40984552]
[1748851729615,18.11824475,156.02,156.01,6.40984552]
[1748851730239,18.11824475,156.02,156.0,6.41012499]
[1748851730441,18.11824475,156.01,155.98,6.41107834]
[1748851730640,18.11824475,156.0,155.98,6.41107834]
[1748851731044,18.11824475,156.01,155.98,6.41107834]
[1748851732739,39.44,156.04,155.98,24.52932309]
[1748851732740,18.11824475,156.02,155.98,24.52932309]
[1748851732938,18.11824475,156.02,155.98,40.55701894]
[1748851733133,18.11824475,156.02,155.98,22.43877419]
[1748851733440,18.11824475,156.01,155.98,22.43877419]
[1748851733631,18.11824475,156.01,155.98,6.41107834]
[1748851733835,39.44,156.04,155.98,6.41107834]
[1748851733836,18.11824475,156.0,155.98,6.41107834]
[1748851734625,18.11824475,156.0,155.97,6.41148938]
[1748851736344,39.44,156.04,155.97,6.41148938]
[1748851736547,18.11824475,156.0,155.97,6.41148938]
[1748851737051,39.44,156.04,155.97,40.5584576]
[1748851737228,18.11824475,156.01,155.97,40.5584576]
[1748851737428,18.11824475,156.0,155.97,22.44021285]
[1748851738449,18.11824475,156.0,155.97,6.41148938]
[1748851738649,18.11824475,156.01,155.97,24.52973413]
[1748851739040,18.11824475,156.0,155.97,22.44021285]
[1748851740335,18.11824475,155.98,155.97,6.41148938]
[1748851740539,18.11824475,155.98,155.95,6.41231163]
[1748851740752,18.11824475,155.97,155.95,6.41231163]
[1748851740935,18.11824475,155.98,155.95,6.41231163]
[1748851741127,57.49824475,156.0,155.95,24.53055638]
[1748851741330,18.11824475,156.0,155.96,18.11824475]
[1748851742339,18.11824475,155.99,155.97,6.41148938]
[1748851743539,18.11824475,156.0,155.97,6.41148938]
[1748851744543,18.11824475,156.0,155.96,22.44151034]
[1748851744951,18.11824475,156.0,155.96,40.55975509]
[1748851745259,10.28,156.01,155.96,22.44151034]
[1748851745260,18.11824475,155.99,155.96,22.44151034]
[1748851747233,18.11824475,155.97,155.96,6.41190048]
[1748851747537,18.11824475,155.97,155.94,6.41272284]
[1748851748053,18.11824475,155.97,155.94,22.44452994]
[1748851748575,18.11824475,155.96,155.94,6.41272284]
[1748851750532,18.11824475,155.97,155.94,6.41272284]
[1748851752543,18.11824475,155.96,155.94,6.41272284]
[1748851754146,18.11824475,155.96,155.93,22.44582755]
[1748851755154,18.11824475,155.94,155.92,6.41344689]
[1748851755353,18.11824475,155.93,155.88,6.41519117]
[1748851755667,18.11824475,155.89,155.88,6.41519117]
[1748851755841,18.11824475,155.89,155.85,6.41642605]
[1748851756045,18.11824475,155.86,155.85,6.41642605]
[1748851756259,18.11824475,155.86,155.83,6.41724956]
[1748851756546,18.11824475,155.84,155.81,6.41807329]
[1748851756844,18.11824475,155.82,155.79,6.41889723]
[1748851757063,18.11824475,155.8,155.79,6.41889723]
[1748851758376,18.11824475,155.84,155.77,22.46902484]
[1748851758665,18.11824475,155.8,155.77,22.46902484]
[1748851759954,18.11824475,155.84,155.77,22.46902484]
[1748851759955,18.11824475,155.79,155.77,22.46902484]
[1748851760365,18.11824475,155.79,155.77,16.04930346]
[1748851762870,39.44,155.83,155.77,16.04930346]
[1748851762871,18.11824475,155.8,155.77,16.04930346]
[1748851763056,39.44,155.83,155.77,34.16754821]
[1748851763259,18.11824475,155.82,155.77,34.16754821]
[1748851763643,16.902,155.85,155.77,16.04930346]
[1748851763644,11.8089,155.85,155.77,16.04930346]
[1748851763955,18.11824475,155.78,155.76,6.42013353]
[1748851764151,18.11824475,155.79,155.76,6.42013353]
[1748851764461,18.11824475,155.79,155.75,22.4719101]
[1748851764668,18.11824475,155.78,155.75,22.4719101]
[1748851766276,18.11824475,155.77,155.75,6.42054574]
[1748851766475,18.11824475,155.76,155.74,6.420958]
[1748851766861,18.11824475,155.77,155.74,6.420958]
[1748851767058,10.26,155.8,155.74,22.47335301]
[1748851767268,18.11824475,155.79,155.74,40.59159776]
[1748851767484,18.11824475,155.78,155.74,22.47335301]
[1748851767974,18.11824475,155.77,155.74,22.47335301]
[1748851768558,18.11824475,155.76,155.74,22.47335301]
[1748851769277,18.11824475,155.77,155.74,16.05239501]
[1748851769477,18.11824475,155.78,155.74,16.05239501]
[1748851770754,10.26,155.8,155.74,34.17063976]
[1748851771050,10.26,155.8,155.74,16.05239501]
[1748851771051,18.11824475,155.78,155.74,16.05239501]
[1748851771254,18.11824475,155.78,155.74,22.47335301]
[1748851771753,10.26,155.81,155.76,18.11824475]
[1748851771986,18.11824475,155.8,155.76,18.11824475]
[1748851772576,10.26,155.81,155.78,36.76789361]
[1748851772788,148.9,155.86,155.8,18.11824475]
[1748851772957,148.9,155.86,155.83,18.11824475]
[1748851773287,167.01824475,155.86,155.83,6.41724956]
[1748851773486,148.9,155.86,155.83,6.41724956]
[1748851773986,148.9,155.86,155.83,40.57861822]
[1748851775053,167.01824475,155.86,155.83,22.46037347]
[1748851775251,18.11824475,155.85,155.83,6.41724956]
[1748851777466,167.01824475,155.86,155.82,22.46181491]
[1748851778267,18.11824475,155.85,155.82,6.4176614]
[1748851778465,18.11824475,155.84,155.82,6.4176614]
[1748851778982,18.11824475,155.83,155.82,6.4176614]
[1748851779282,18.11824475,155.83,155.8,6.41848523]
[1748851779481,18.11824475,155.84,155.8,40.58294307]
[1748851781592,18.11824475,155.83,155.8,22.46469832]
[1748851781976,18.11824475,155.83,155.8,6.41848523]
[1748851783906,188.36,155.86,155.8,40.58294307]
[1748851784077,18.11824475,155.85,155.81,18.11824475]
[1748851784596,18.11824475,155.85,155.8,40.58294307]
[1748851785067,18.11824475,155.85,155.81,18.11824475]
[1748851785269,18.11824475,155.85,155.8,40.58294307]
[1748851785503,18.11824475,155.84,155.8,40.58294307]
[1748851785811,18.11824475,155.81,155.78,6.41930928]
[1748851785966,18.11824475,155.79,155.78,6.41930928]
[1748851786169,18.11824475,155.79,155.71,6.3995]
[1748851786170,18.11824475,155.79,155.75,6.42054574]
[1748851786375,18.11824475,155.76,155.75,6.42054574]
[1748851787381,18.11824475,155.76,155.72,6.42178268]
[1748851787588,18.11824475,155.74,155.72,6.42178268]
[1748851788397,18.11824475,155.75,155.72,22.47623939]
[1748851789179,18.11824475,155.74,155.72,22.47623939]
[1748851789497,18.11824475,155.74,155.72,16.05445671]
[1748851789903,18.11824475,155.75,155.72,16.05445671]
[1748851792027,18.11824475,155.75,155.72,22.47623939]
[1748851796418,10.28,155.77,155.72,22.47623939]
[1748851796624,18.11824475,155.76,155.72,40.59448414]
[1748851796801,18.11824475,155.75,155.72,22.47623939]
[1748851797546,18.11824475,155.73,155.7,6.42260757]
[1748851797844,18.11824475,155.71,155.67,6.42384531]
[1748851798007,18.11824475,155.68,155.66,6.42410858]
[1748851798208,18.11824475,155.67,155.66,6.42410858]
[1748851798827,18.11824475,155.67,155.64,6.42508352]
[1748851799018,18.11824475,155.67,155.64,22.48779233]
[1748851799227,18.11824475,155.68,155.64,22.48779233]
[1748851799920,10.28,155.7,155.66,18.11824475]
[1748851800326,10.28,155.7,155.68,18.11824475]
[1748851800511,10.3,155.73,155.69,18.11824475]
[1748851800709,10.3,155.78,155.72,18.11824475]
[1748851800927,18.11824475,155.76,155.7,18.64964886]
[1748851801157,18.11824475,155.75,155.71,18.11824475]
[1748851801532,18.11824475,155.77,155.73,18.11824475]
[1748851802514,10.3,155.78,155.73,18.11824475]
[1748851802714,28.41824475,155.78,155.74,18.11824475]
[1748851802908,18.11824475,155.77,155.73,18.11824475]
[1748851803107,18.11824475,155.76,155.72,57.63824475]
[1748851803308,27.19737872,155.76,155.72,66.71737872]
[1748851803507,27.19737872,155.76,155.73,22.47479612]
[1748851803710,27.19737872,155.77,155.73,22.47479612]
[1748851804022,10.3,155.78,155.74,27.19737872]
[1748851804220,27.19737872,155.77,155.73,49.67217484]
[1748851804613,37.49737872,155.78,155.73,49.67217484]
[1748851804917,37.49737872,155.78,155.74,27.19737872]
[1748851805334,10.3,155.78,155.75,27.19737872]
[1748851805533,10.3,155.78,155.76,6.42013353]
[1748851805907,37.49737872,155.78,155.76,6.42013353]
[1748851806238,10.3,155.78,155.76,6.42013353]
[1748851806441,10.3,155.78,155.76,33.61751225]
[1748851806732,27.19737872,155.8,155.76,49.66784609]
[1748851807122,27.19737872,155.81,155.77,27.19737872]
[1748851807708,27.19737872,155.81,155.76,51.33264609]
[1748851808941,27.19737872,155.79,155.76,22.47046737]
[1748851809951,27.19737872,155.79,155.76,16.05033384]
[1748851810319,27.19737872,155.78,155.74,33.61833672]
[1748851810532,27.19737872,155.77,155.74,6.420958]
[1748851811132,27.19737872,155.76,155.74,6.420958]
[1748851811933,27.19737872,155.77,155.73,49.67217484]
[1748851812420,63.42463929,155.82,155.73,49.67217484]
[1748851812618,27.19737872,155.78,155.73,49.67217484]
[1748851812950,27.19737872,155.77,155.73,49.67217484]
[1748851813150,27.19737872,155.76,155.73,22.47479612]
[1748851813943,27.19737872,155.76,155.73,6.42137032]
[1748851814138,27.19737872,155.74,155.71,6.4221951]
[1748851814335,27.19737872,155.73,155.71,6.4221951]
[1748851815341,27.19737872,155.73,155.7,22.47843659]
[1748851815914,10.32,155.76,155.72,27.19737872]
[1748851816126,10.32,155.76,155.74,27.19737872]
[1748851816325,176.09737872,155.78,155.74,27.19737872]
[1748851816524,27.19737872,155.79,155.75,27.19737872]
[1748851816833,27.19737872,155.8,155.76,27.19737872]
[1748851817345,37.51737872,155.81,155.76,27.19737872]
[1748851817544,37.51737872,155.81,155.77,22.46902484]
[1748851817748,37.51737872,155.81,155.77,49.66640356]
[1748851817961,10.32,155.81,155.78,27.19737872]
[1748851818138,27.14463929,155.82,155.8,27.19737872]
[1748851818324,27.19737872,155.84,155.8,27.19737872]
[1748851818763,129.91737872,155.85,155.8,27.19737872]
[1748851819429,129.91737872,155.85,155.81,6.41807329]
[1748851819753,129.91737872,155.85,155.81,49.66063524]
[1748851819927,10.32,155.85,155.82,27.19737872]
[1748851820456,10.32,155.85,155.81,49.66063524]
[1748851821659,10.32,155.85,155.82,27.19737872]
[1748851822848,27.19737872,155.86,155.82,27.19737872]
[1748851823448,27.19737872,155.86,155.83,22.46037347]
[1748851823666,10.32,155.88,155.85,27.19737872]
[1748851824034,10.32,155.88,155.84,27.19737872]
[1748851824860,27.19737872,155.86,155.83,22.46037347]
[1748851825058,27.19737872,155.85,155.83,6.41724956]
[1748851825653,27.19737872,155.85,155.81,6.41807329]
[1748851826245,27.19737872,155.84,155.81,6.41807329]
[1748851826833,148.9,155.87,155.81,6.41807329]
[1748851827033,176.09737872,155.87,155.83,27.19737872]
[1748851827545,27.19737872,155.86,155.82,27.19737872]
[1748851827932,27.19737872,155.86,155.83,6.41724956]
[1748851828754,27.19737872,155.86,155.83,22.46037347]
[1748851828962,176.09737872,155.87,155.83,49.65775219]
[1748851829261,148.9,155.87,155.83,49.65775219]
[1748851829436,148.9,155.87,155.84,27.19737872]
[1748851830058,148.9,155.87,155.85,6.41642605]
[1748851830232,27.19737872,155.86,155.79,18.64964886]
[1748851830437,27.19737872,155.8,155.75,18.64964886]
[1748851830645,27.19737872,155.77,155.74,6.420958]
[1748851830861,27.19737872,155.76,155.74,6.420958]
[1748851831065,27.19737872,155.75,155.74,6.420958]
[1748851831560,27.19737872,155.75,155.72,16.05445671]
[1748851831758,27.19737872,155.76,155.72,16.05445671]
[1748851831957,27.19737872,155.76,155.72,22.47623939]
[1748851832664,27.19737872,155.75,155.72,6.42178268]
[1748851833572,27.19737872,155.73,155.72,6.42178268]
[1748851833859,27.19737872,155.74,155.72,6.42178268]
[1748851834061,27.19737872,155.74,155.7,6.42260757]
[1748851834248,27.19737872,155.75,155.7,49.67650523]
[1748851836066,27.19737872,155.75,155.71,27.19737872]
[1748851836247,27.19737872,155.75,155.72,6.42178268]
[1748851836441,27.19737872,155.76,155.72,49.67361811]
[1748851837371,10.32,155.78,155.72,49.67361811]
[1748851837549,37.51737872,155.78,155.74,27.19737872]
[1748851838357,37.51737872,155.78,155.75,6.42054574]
[1748851839672,27.19737872,155.77,155.75,6.42054574]
[1748851840757,27.19737872,155.77,155.74,6.420958]
[1748851841780,27.19737872,155.82,155.76,28.80887872]
[1748851842067,27.19737872,155.82,155.78,27.19737872]
[1748851842575,186.41737872,155.83,155.79,27.19737872]
[1748851842743,186.41737872,155.83,155.81,27.19737872]
[1748851842744,159.22,155.83,155.81,27.19737872]
[1748851842945,148.9,155.83,155.81,27.19737872]
[1748851843870,27.19737872,155.86,155.82,27.19737872]
[1748851844276,27.19737872,155.85,155.78,22.46758248]
[1748851844593,27.19737872,155.84,155.79,27.19737872]
[1748851845043,27.19737872,155.83,155.8,6.41848523]
[1748851846151,159.24,155.87,155.81,27.19737872]
[1748851846373,27.19737872,155.85,155.81,27.19737872]
[1748851846554,27.19737872,155.85,155.8,49.66207704]
[1748851847160,27.19737872,155.84,155.8,22.46469832]
[1748851847681,27.19737872,155.84,155.8,49.66207704]
[1748851847885,27.19737872,155.84,155.8,6.41848523]
[1748851848188,27.19737872,155.83,155.8,6.41848523]
[1748851849079,27.19737872,155.81,155.78,6.41930928]
[1748851850288,27.19737872,155.82,155.78,6.41930928]
[1748851851070,27.19737872,155.82,155.78,33.616688]
[1748851851389,176.09737872,155.83,155.78,49.6649612]
[1748851852393,159.24,155.87,155.82,27.19737872]
[1748851852561,186.43737872,155.87,155.82,27.19737872]
[1748851852876,27.19737872,155.84,155.8,27.19737872]
[1748851853194,27.19737872,155.83,155.79,66.77737872]
[1748851853787,27.19737872,155.83,155.78,22.46758248]
[1748851853977,27.19737872,155.79,155.78,6.41930928]
[1748851854165,27.19737872,155.8,155.78,6.41930928]
[1748851854365,27.19737872,155.81,155.77,6.41972138]
[1748851854587,27.19737872,155.8,155.77,6.41972138]
[1748851854762,155.31687049,155.84,155.77,6.41972138]
[1748851854962,27.19737872,155.8,155.77,6.41972138]
[1748851857497,27.19737872,155.79,155.77,6.41972138]
[1748851857694,27.19737872,155.78,155.77,6.41972138]
[1748851857894,27.19737872,155.78,155.72,52.3937654]
[1748851858072,27.19737872,155.78,155.73,27.19737872]
[1748851858272,27.19737872,155.78,155.73,33.61874904]
[1748851858483,27.19737872,155.75,155.73,6.42137032]
[1748851858998,27.19737872,155.74,155.69,69.25405866]
[1748851859195,27.19737872,155.72,155.7,6.42260757]
[1748851859369,27.19737872,155.73,155.7,6.42260757]
[1748851859720,27.19737872,155.74,155.7,33.61998629]
[1748851860194,27.19737872,155.74,155.7,49.67650523]
[1748851860493,27.19737872,155.74,155.7,22.47912651]
[1748851861897,27.19737872,155.74,155.7,49.67650523]
[1748851862196,27.19737872,155.74,155.7,6.42260757]
[1748851862383,27.19737872,155.72,155.7,6.42260757]
[1748851862578,27.19737872,155.71,155.7,6.42260757]
[1748851862971,27.19737872,155.71,155.66,53.19737872]
[1748851863284,27.19737872,155.69,155.67,6.42384531]
[1748851863490,27.19737872,155.7,155.67,6.42384531]
[1748851863885,27.19737872,155.71,155.67,6.42384531]
[1748851864190,27.19737872,155.7,155.67,6.42384531]
[1748851864797,27.19737872,155.69,155.67,6.42384531]
[1748851865999,27.19737872,155.69,155.65,27.19737872]
[1748851866000,27.19737872,155.69,155.66,6.42425799]
[1748851867002,27.19737872,155.68,155.66,6.42425799]
[1748851867297,27.19737872,155.67,155.64,6.42508352]
[1748851867998,27.19737872,155.67,155.63,6.42549636]
[1748851868299,27.19737872,155.66,155.63,6.42549636]
[1748851868504,27.19737872,155.65,155.63,6.42549636]
[1748851868797,10.34,155.67,155.59,1.6379]
[1748851868798,27.19737872,155.64,155.59,6.42714827]
[1748851868980,27.19737872,155.63,155.59,6.42714827]
[1748851869181,27.19737872,155.64,155.6,27.19737872]
[1748851870077,27.19737872,155.64,155.61,6.42632221]
[1748851871495,159.24,155.66,155.61,49.68950646]
[1748851871686,27.19737872,155.65,155.61,49.68950646]
[1748851872185,27.19737872,155.64,155.6,33.62411393]
[1748851872895,27.19737872,155.64,155.6,6.42673521]
[1748851873089,27.19737872,155.63,155.6,6.42673521]
[1748851874198,27.19737872,155.63,155.59,6.42714827]
[1748851874404,27.19737872,155.62,155.59,6.42714827]
[1748851874600,27.19737872,155.61,155.59,6.42714827]
[1748851874982,27.19737872,155.6,155.57,6.42797454]
[1748851875286,27.19737872,155.58,155.55,6.42880102]
[1748851876382,27.19737872,155.57,155.54,6.42921435]
[1748851876605,27.19737872,155.58,155.54,49.69962894]
[1748851876789,27.19737872,155.59,155.55,27.19737872]
[1748851877300,6.6549,155.64,155.55,27.19737872]
[1748851877301,10.38,155.65,155.58,27.19737872]
[1748851877494,37.57737872,155.65,155.6,27.19737872]
[1748851878375,37.57737872,155.65,155.62,6.42590926]
[1748851878596,37.57737872,155.68,155.63,27.19737872]
[1748851878916,10.38,155.68,155.65,27.19737872]
[1748851879606,10.38,155.68,155.64,27.19737872]
[1748851879792,37.57737872,155.68,155.63,27.19737872]
[1748851880381,37.57737872,155.68,155.64,6.42508352]
[1748851880581,27.19737872,155.67,155.64,6.42508352]
[1748851880781,27.19737872,155.65,155.64,6.42508352]
[1748851881384,27.19737872,155.66,155.64,6.42508352]
[1748851881707,76.06,155.68,155.64,6.42508352]
[1748851881884,27.19737872,155.67,155.64,6.42508352]
[1748851882085,27.19737872,155.66,155.64,6.42508352]
[1748851882703,27.19737872,155.66,155.63,6.42549636]
[1748851883083,27.19737872,155.65,155.63,6.42549636]
[1748851883899,27.19737872,155.64,155.62,6.42590926]
[1748851884103,27.19737872,155.63,155.6,6.42673521]
[1748851884280,6.42387886,155.67,155.6,6.42673521]
[1748851884281,27.19737872,155.62,155.6,6.42673521]
[1748851885309,27.19737872,155.62,155.59,6.42714827]
[1748851885482,27.19737872,155.61,155.59,6.42714827]
[1748851886907,27.19737872,155.62,155.59,6.42714827]
[1748851887920,27.19737872,155.62,155.58,6.42756138]
[1748851888287,10.38,155.63,155.58,6.42756138]
[1748851888288,27.19737872,155.61,155.58,6.42756138]
[1748851888510,27.19737872,155.59,155.58,6.42756138]
[1748851889913,27.19737872,155.59,155.56,22.49853355]
[1748851890213,27.19737872,155.59,155.56,6.42838776]
[1748851894609,148.9,155.62,155.58,27.19737872]
[1748851894914,148.9,155.62,155.6,27.19737872]
[1748851895592,148.9,155.62,155.58,27.19737872]
[1748851895804,27.19737872,155.61,155.57,27.19737872]
[1748851896006,27.19737872,155.61,155.56,22.49935716]
[1748851896007,27.19737872,155.59,155.56,6.42838776]
[1748851896225,27.19737872,155.58,155.56,6.42838776]
[1748851896724,188.56,155.62,155.56,22.49935716]
[1748851896896,27.19737872,155.6,155.56,49.69673588]
[1748851897102,188.56,155.62,155.57,27.19737872]
[1748851897313,27.19737872,155.61,155.56,22.49935716]
[1748851897517,27.19737872,155.6,155.56,49.69673588]
[1748851898820,27.19737872,155.6,155.56,22.49935716]
[1748851899001,27.19737872,155.59,155.56,6.42838776]
[1748851899922,27.19737872,155.6,155.56,33.62576648]
[1748851900523,27.19737872,155.6,155.56,49.69673588]
[1748851901504,10.38,155.61,155.56,49.69673588]
[1748851901704,27.19737872,155.6,155.56,49.69673588]
[1748851902501,27.19737872,155.59,155.56,6.42838776]
[1748851902715,27.19737872,155.58,155.56,6.42838776]
[1748851903138,27.19737872,155.59,155.56,6.42838776]
[1748851903422,18.17548452,155.59,155.56,6.42838776]
[1748851903621,18.17548452,155.58,155.56,6.42838776]
[1748851904199,10.38,155.61,155.54,18.17548452]
[1748851904200,18.17548452,155.57,155.54,6.42921435]
[1748851904528,214.56,155.62,155.52,6.42971489]
[1748851904529,18.17548452,155.55,155.52,6.42971489]
[1748851904835,10.36,155.56,155.52,6.42971489]
[1748851904836,18.17548452,155.53,155.52,6.42971489]
[1748851905196,27.28359359,155.53,155.52,6.42971489]
[1748851905407,27.28359359,155.53,155.5,6.43057586]
[1748851905606,10.36,155.56,155.5,6.43057586]
[1748851905607,27.28359359,155.52,155.5,6.43057586]
[1748851906042,27.28359359,155.53,155.5,6.43057586]
[1748851907109,27.28359359,155.54,155.5,27.28359359]
[1748851907309,27.28359359,155.55,155.49,22.50938513]
[1748851907522,10.36,155.56,155.5,27.28359359]
[1748851907822,27.28359359,155.54,155.49,49.79297872]
[1748851908925,27.28359359,155.53,155.49,49.79297872]
[1748851909412,27.28359359,155.52,155.49,22.50938513]
[1748851909605,27.28359359,155.54,155.49,49.79297872]
[1748851910002,27.28359359,155.53,155.49,49.79297872]
[1748851912239,27.28359359,155.53,155.49,22.50938513]
[1748851914418,27.28359359,155.52,155.49,22.50938513]
[1748851915231,27.28359359,155.5,155.48,6.43153397]
[1748851915601,10.36,155.51,155.48,6.43153397]
[1748851916104,37.64359359,155.51,155.48,6.43153397]
[1748851916410,27.28359359,155.5,155.46,43.36392012]
[1748851916825,27.28359359,155.5,155.46,16.08032653]
[1748851917332,27.28359359,155.5,155.46,43.36392012]
[1748851917533,27.28359359,155.5,155.46,16.08032653]
[1748851917938,10.36,155.51,155.45,6.43293663]
[1748851917939,27.28359359,155.48,155.45,6.43293663]
[1748851918931,27.28359359,155.49,155.45,6.43293663]
[1748851919545,27.28359359,155.48,155.45,6.43293663]
[1748851920137,10.36,155.51,155.46,27.28359359]
[1748851920447,10.36,155.51,155.48,33.71528898]
[1748851920626,10.36,155.51,155.5,27.28359359]
[1748851921722,10.36,155.51,155.49,27.28359359]
[1748851922326,37.64359359,155.51,155.47,33.71570267]
[1748851922644,37.64359359,155.51,155.47,6.43210908]
[1748851922945,27.28359359,155.5,155.47,6.43210908]
[1748851924337,27.28359359,155.5,155.45,16.08157446]
[1748851924540,27.28359359,155.5,155.45,43.36516805]
[1748851925356,18.19632662,155.5,155.45,16.08157446]
[1748851925561,18.19632662,155.5,155.45,34.27790108]
[1748851926220,18.19632662,155.48,155.44,6.43335048]
[1748851928937,18.19632662,155.49,155.44,40.71305332]
[1748851929752,148.9,155.5,155.48,18.19632662]
[1748851929924,10.36,155.52,155.48,18.19632662]
[1748851929925,10.36,155.52,155.49,18.19632662]
[1748851930123,10.36,155.52,155.51,18.19632662]
[1748851930320,148.9,155.58,155.51,18.19632662]